[Event "45th FIDE Womens Olympiad 2024"]
[Site "Budapest"]
[Date "2024.09.16"]
[Round "6.44"]
[White "Schloffer, Jasmin-Denise"]
[Black "Peycheva, Gergana"]
[Result "1/2-1/2"]
[ECO "D31"]
[WhiteElo "2168"]
[BlackElo "2248"]
[Annotator "TA"]
[PlyCount "179"]
[EventDate "2024.09.05"]
[EventType "team-tourn"]
[EventCountry "HUN"]
[SourceTitle "playchess.com"]
[Source "ChessBase"]
[SourceQuality "1"]
[WhiteTeam "Austria"]
[BlackTeam "Bulgaria"]
[WhiteTeamCountry "AUT"]
[BlackTeamCountry "BUL"]
[TimeControl "40/5400+30:1800+30"]

{[%evp 9,179,28,22,13,15,17,13,8,19,6,41,18,35,0,13,3,12,6,27,0,0,0,2,0,6,-18,0,0,0,0,0,0,11,0,4,0,0,0,0,0,0,0,7,0,19,22,17,16,22,4,13,20,14,16,10,0,0,0,0,0,11,7,36,16,71,68,63,68,75,82,127,114,173,178,183,168,272,244,231,185,190,187,197,191,210,214,246,245,206,125,281,280,275,280,284,282,300,267,280,269,274,243,311,306,293,252,266,206,261,244,247,139,139,147,145,145,123,123,291,277,355,355,370,377,362,348,355,334,342,339,339,339,337,336,305,106,106,79,80,77,81,63,66,43,43,43,43,43,43,43,43,43,43,43,43,43,43,43,43,43,43,43,43,36,36,36,36,19,19,19,19,0]} 1. d4 d5 2. c4 e6 3. Nc3 a6 4. cxd5 exd5 5. Bf4 Nf6 6. Bg5 Be7 7. e3 h6 8. Bh4 O-O 9. Bd3 Bg4 10. f3 Bc8 11. Bf2 c5 12. Nge2 Nc6 13. O-O Re8 14. Qd2 b5 15. dxc5 Bxc5 16. Nd4 Ne5 17. Rad1 Qb6 18. b3 Bd7 19. Bb1 b4 20. Nce2 a5 21. Nf4 Nc6 22. Nfe2 a4 23. Nxc6 Bxc6 24. Nd4 Bd7 25. Rfe1 Re7 26. Qd3 Qa6 27. Bh4 Qxd3 28. Rxd3 g5 29. Bf2 axb3 30. Nxb3 Bb6 31. Nd4 Ree8 32. Rc1 Rec8 33. Re1 Rc4 34. Rd2 Rac8 35. Rb2 Rc1 36. Kf1 (36. Rxb4 Ba5 37. Ne2 Rxe1+ 38. Bxe1 d4 $17 (38... Bxb4 39. Bxb4 d4 40. e4 $17)) 36... g4 (36... Nh5 $11 {remains equal.}) 37. Rxc1 Rxc1+ 38. Be1 gxf3 39. gxf3 Bc7 {[%cal Oc7h2]} 40. Bd3 (40. Rxb4 $2 Ba5 41. Rb8+ Kg7 $19) 40... Bh3+ (40... Bd6 $16 {was called for.} 41. Ke2 Kg7) 41. Ke2 $18 Be5 42. Rxb4 (42. Bxb4 Rh1 43. Kd2 Rxh2+ 44. Kc3 Rxb2 45. Kxb2 Bxd4+ 46. exd4 Nh7 $11) 42... Rc8 (42... Nd7 $142 43. Rb1 Rxb1 44. Bxb1 Bxh2) 43. Bg3 Nd7 44. Nf5 Ra8 45. a4 ({Inferior is} 45. Nxh6+ Kg7 $14) 45... Bxg3 46. hxg3 Nc5 47. Ne7+ ({Don't do} 47. Nxh6+ $6 Kg7 $14) 47... Kf8 48. Nxd5 Nxa4 49. Rh4 Be6 (49... Nc5 $16 {is a better defense.}) 50. Nc7 Ra5 51. Nxe6+ fxe6 52. Rxh6 {[%mdl 4096] Endgame. KRB-KRN} Nc5 53. Bc4 {Prevents Ra2+.} Ke7 54. Kd2 Kd6 55. Rh4 Ra1 56. g4 Rg1 57. Rh2 Nd7 58. Bd3 Ra1 59. Rh6 Ne5 60. Be4 (60. Be2 $18 {And now f4 would win.} Ra2+ 61. Ke1 Ra1+ 62. Kf2) 60... Nc4+ 61. Kd3 Ne5+ {[#]} 62. Ke2 $1 Ra2+ {[#]} 63. Ke1 $1 {Hoping for g5.} Ke7 $2 (63... Ra4 $16) 64. Rh7+ Kf8 65. Rc7 {Against Nc4} Rg2 66. Kf1 Ra2 67. Rc5 Nd7 68. Rc2 Ra5 69. Kf2 Nf6 70. Rc4 Ke7 71. Kg3 Ra1 72. f4 $2 (72. Kf4 $18) 72... Rg1+ $16 73. Bg2 {Strongly threatening Kf2.} Nxg4 {[%cal Og1g2]} 74. Rc3 Nf6 75. Kf2 Ra1 76. Bf3 Ra4 77. Ke2 Ne4 78. Bxe4 Rxe4 $14 {KR-KR} 79. Kd3 Ra4 80. Rc4 Ra1 81. Kd4 Rd1+ 82. Ke4 Kf6 83. Rc6 {f5 is the strong threat.} Ra1 84. Kf3 Ra3 85. Rb6 Ke7 86. Rb5 Kf6 87. Re5 Ra1 88. Ke4 Ra4+ 89. Kd3 Ra3+ 90. Ke4 {Black defended with fortune.   Weighted Error Value: White=0.11 (very precise) /Black=0.16 (very precise) .  Loses game:     	---       	Black=1      Missed win:     	White=1     	---        Mistake:       	White=1     	Black=4      Inaccurate:     	White=1     	Black=3      OK:         	White=35    	Black=22     Best:        	White=3     	Black=5      Strong:       	White=2     	---} 1/2-1/2

[Event "45th FIDE Womens Olympiad 2024"]
[Site "Budapest"]
[Date "2024.09.16"]
[Round "6.45"]
[White "Daulyte-Cornette, Deimante"]
[Black "Mihok-Juhasz, Barbara"]
[Result "1-0"]
[ECO "B40"]
[WhiteElo "2369"]
[BlackElo "2193"]
[Annotator "RC"]
[PlyCount "57"]
[EventDate "2024.09.05"]
[EventType "team-tourn"]
[EventCountry "HUN"]
[SourceTitle "playchess.com"]
[Source "ChessBase"]
[SourceQuality "1"]
[WhiteTeam "France"]
[BlackTeam "Hungary B"]
[WhiteTeamCountry "FRA"]
[TimeControl "40/5400+30:1800+30"]

1. e4 c5 2. Nf3 e6 3. c3 d5 4. e5 d4 5. d3 Nc6 6. g3 Nge7 7. Bg2 Nd5 8. O-O Be7 9. c4 Nc7 10. h4 f5 11. exf6 Bxf6 12. Bf4 O-O 13. Re1 Ne8 14. Nbd2 Nd6 15. Nb3 b6 16. Ng5 Bxg5 17. Bxc6 Bxf4 18. Bxa8 Bh6 19. Nd2 Bd7 20. Bg2 Qf6 21. Qe2 Bxd2 22. Qxd2 e5 23. a3 Bg4 24. b4 Bf3 25. Bxf3 Qxf3 26. Rxe5 Nf5 27. Qe2 Qc6 28. Re1 Qg6 29. Re8 1-0

[Event "45th FIDE Womens Olympiad 2024"]
[Site "Budapest"]
[Date "2024.09.16"]
[Round "6.45"]
[White "Sosna, Mehari Abraham"]
[Black "Asha, Huang Limboo"]
[Result "1-0"]
[ECO "D02"]
[WhiteElo "1541"]
[BlackElo "1420"]
[PlyCount "113"]
[EventDate "2024.09.05"]
[EventType "team-tourn"]
[EventCountry "HUN"]
[WhiteTeam "Eritrea"]
[BlackTeam "Bhutan"]
[WhiteTeamCountry "ERI"]
[BlackTeamCountry "BTN"]
[TimeControl "40/5400+30:1800+30"]

1. d4 d5 2. Nf3 Nf6 3. Bf4 Nc6 4. e3 a6 5. Bd3 Bg4 6. Nbd2 e6 7. c3 h6 8. h3 Bf5 9. Bxf5 exf5 10. Qc2 Qd7 11. Ne5 Nxe5 12. Bxe5 Bd6 13. Bxf6 gxf6 14. Qb3 c6 15. O-O-O O-O-O 16. f4 Rde8 17. Rde1 h5 18. c4 Qc7 19. c5 Bf8 20. g4 hxg4 21. hxg4 Bh6 22. Rh4 fxg4 23. Rxg4 f5 24. Rh4 Bg7 25. Rxh8 Bxh8 26. Nf3 f6 27. Qc2 Qa5 28. Qxf5+ Kd8 29. a3 Bg7 30. Qh7 Qc7 31. Rg1 Bh8 32. Qxc7+ Kxc7 33. Kd2 Re7 34. Rg8 Rh7 35. b4 b5 36. Kd3 Rh1 37. e4 dxe4+ 38. Kxe4 Rh5 39. f5 Rh7 40. Re8 Bg7 41. Re6 Kd7 42. Rd6+ Kc7 43. d5 Bf8 44. Rxc6+ Kb7 45. Rxf6 Re7+ 46. Ne5 Bg7 47. Re6 Rxe6 48. fxe6 Bf6 49. d6 Kc8 50. c6 Bh4 51. d7+ Kc7 52. Kd5 Kd8 53. Nf7+ Kc7 54. d8=Q+ Bxd8 55. Nxd8 Kxd8 56. Kd6 Ke8 57. c7 1-0

[Event "45th FIDE Womens Olympiad 2024"]
[Site "Budapest"]
[Date "2024.09.16"]
[Round "6.46"]
[White "Lakos, Nikoletta"]
[Black "Milliet, Sophie"]
[Result "1/2-1/2"]
[ECO "B80"]
[WhiteElo "2192"]
[BlackElo "2348"]
[Annotator "TA"]
[PlyCount "42"]
[EventDate "2024.09.05"]
[EventType "team-tourn"]
[EventCountry "HUN"]
[SourceTitle "playchess.com"]
[Source "ChessBase"]
[SourceQuality "1"]
[WhiteTeam "Hungary B"]
[BlackTeam "France"]
[BlackTeamCountry "FRA"]
[TimeControl "40/5400+30:1800+30"]

{[%evp 17,42,0,9,-16,-16,-14,0,-12,0,0,0,0,0,0,0,0,10,7,20,0,27,0,20,0,40,0,31]} 1. e4 c5 2. Nf3 e6 3. g3 Nc6 4. Bg2 Nf6 5. Nc3 d6 6. d4 cxd4 7. Nxd4 Bd7 8. O-O Be7 9. h3 O-O 10. Kh2 Nxd4 11. Qxd4 Bc6 12. a4 a6 13. a5 Rc8 14. Rd1 Nd7 15. Be3 Qc7 16. f4 Kh8 17. Qd2 Rcd8 18. Bd4 Bf6 19. Be3 Be7 20. Bd4 Bf6 21. Be3 Be7 {A rather calm draw.   Weighted Error Value: White=0.13 (very precise) /Black=0.06 (flawless) .  Inaccurate:     	---       	Black=1      OK:         	White=2     	Black=5      Best:        	---       	Black=1} 1/2-1/2

[Event "45th FIDE Womens Olympiad 2024"]
[Site "Budapest"]
[Date "2024.09.16"]
[Round "6.47"]
[White "Guichard, Pauline"]
[Black "Karacsonyi, Kata"]
[Result "1-0"]
[ECO "D24"]
[WhiteElo "2374"]
[BlackElo "2233"]
[Annotator "TA"]
[PlyCount "85"]
[EventDate "2024.09.05"]
[EventType "team-tourn"]
[EventCountry "HUN"]
[SourceTitle "playchess.com"]
[Source "ChessBase"]
[SourceQuality "1"]
[WhiteTeam "France"]
[BlackTeam "Hungary B"]
[WhiteTeamCountry "FRA"]
[TimeControl "40/5400+30:1800+30"]

{[%evp 9,85,10,49,37,50,45,61,18,26,23,41,20,27,27,28,-43,-28,-45,-35,-36,-38,-24,-23,-37,0,-28,-8,-10,48,47,39,47,80,83,99,95,77,74,157,170,170,180,154,160,143,131,259,265,241,211,283,302,296,283,289,295,288,277,308,306,365,361,381,377,531,506,1090,1065,29988,29972,29981,29982,29982,29983,29991,29992,29992,29993]} 1. d4 Nf6 2. c4 e6 3. Nf3 d5 4. Nc3 dxc4 5. e4 {[%cal Be2e4,Be4e5][%mdl 32]} b5 6. e5 $1 Nd5 7. Nxb5 Nb6 8. a4 {White is slightly better.} Qd7 9. Bd2 {[%cal Oa4a5]} Ba6 10. b3 cxb3 11. Qxb3 {[%cal Ob5c7]} c6 {[#]} 12. Nd6+ Bxd6 $15 13. exd6 Qxd6 14. Bxa6 Nxa6 15. O-O O-O 16. Rfc1 Nd7 {[%cal Bb6d7,Bd7c5,Bc5b7][%mdl 32]} 17. Rc4 Qd5 18. Qc2 c5 (18... Rac8 $11) 19. dxc5 $14 Ndxc5 20. Be3 {[%cal Oa1d1] And now Rd1! would win.} Nb7 21. Rd1 {[%mdl 1024] White has strong compensation. Black is weak on the dark squares. Black is on the road to losing.} Qf5 {[#]} 22. Qb2 $1 Rab8 {...Na5 is the strong threat.} 23. Rf4 $40 {[%mdl 128] White attacks with force. White is much more active.} Qa5 (23... Rfd8 $142 24. Rxd8+ Nxd8 25. Qxb8 Nxb8 26. Rxf5 exf5) 24. Rg4 {[%csl Gg4][%cal Rb2g7]} f6 {[#]} 25. Bh6 $1 Rf7 {[#]} 26. Rxg7+ $1 {[%mdl 512]} Rxg7 27. Bxg7 (27. Qxf6 $2 Rg6 28. Qh4 Qb4 29. Qxb4 Nxb4 $19) 27... Rd8 (27... Qxa4 $16 {is a better defense.} 28. Ra1 Qf4 29. Qxf6 (29. Bxf6 Nbc5 $16) 29... Qxf6 30. Bxf6 Nb4 31. Rxa7 Nc6) 28. Rxd8+ (28. Bxf6 $2 {gets mated.} Rxd1+) 28... Qxd8 29. h4 (29. Qxb7 $2 {is a self mate.} Qd1+) 29... Kxg7 30. Qxb7+ $18 {[%mdl 4096] Endgame. KQN-KQN} Nc7 31. Qxa7 Qd1+ 32. Kh2 Qd6+ 33. g3 Kg6 34. Qb8 Kg7 {Prevents Qg8+.} 35. Kg2 Qc6 36. Qc8 e5 (36... Qd6 $142 37. a5 h5) 37. a5 Kg6 (37... h5 $142 38. a6 Kh7) 38. Qg8+ Kh6 39. g4 {[%cal Bg3g4,Bg4g5][%mdl 32] White mates.} Ne6 40. Kg3 Qd7 41. g5+ Kh5 42. gxf6 e4 43. Ne5 {Weighted Error Value: White=0.06 (flawless) /Black=0.40.  Mistake:       	White=1     	Black=5      Inaccurate:     	White=2     	Black=4      OK:         	White=12    	Black=7      Best:        	White=6     	Black=3      Strong:       	White=2     	---} 1-0

[Event "45th FIDE Womens Olympiad 2024"]
[Site "Budapest"]
[Date "2024.09.16"]
[Round "6.47"]
[White "Elshalom, Essayas Berhane"]
[Black "Yeshey, Lhaden"]
[Result "1-0"]
[ECO "B13"]
[WhiteElo "1659"]
[BlackElo "1514"]
[PlyCount "95"]
[EventDate "2024.09.05"]
[EventType "team-tourn"]
[EventCountry "HUN"]
[WhiteTeam "Eritrea"]
[BlackTeam "Bhutan"]
[WhiteTeamCountry "ERI"]
[BlackTeamCountry "BTN"]
[TimeControl "40/5400+30:1800+30"]

1. e4 c6 2. d4 d5 3. exd5 cxd5 4. Bd3 Nf6 5. Nf3 g6 6. Bf4 Nc6 7. c3 Bg7 8. h3 Nh5 9. Bh2 O-O 10. Nbd2 f6 11. g4 e5 12. gxh5 e4 13. hxg6 exd3 14. gxh7+ Kxh7 15. Nf1 Re8+ 16. Ne3 Bf5 17. Nd2 Bh6 18. Qh5 Bg6 19. Qh4 f5 20. Qxd8 Raxd8 21. O-O-O Bh5 22. Rde1 f4 23. Ng4 Re2 24. Nxh6 Rde8 25. Rxe2 dxe2 26. Re1 Kxh6 27. Bxf4+ Kh7 28. Be3 Re6 29. Nb3 a5 30. Kd2 a4 31. Nc1 Na5 32. b3 Rb6 33. Nxe2 axb3 34. axb3 Rxb3 35. Nf4 Nc4+ 36. Kd3 Bf3 37. Bd2 Nxd2 38. Kxd2 Rb2+ 39. Ke3 Be4 40. f3 Bf5 41. Nxd5 Rb3 42. Kf4 Bg6 43. Kg5 Kg7 44. Re7+ Bf7 45. Rc7 b5 46. Rb7 Kf8 47. Kf6 Bxd5 48. Rb8# 1-0

[Event "45th FIDE Womens Olympiad 2024"]
[Site "Budapest"]
[Date "2024.09.16"]
[Round "6.48"]
[White "Demeter, Dorina"]
[Black "Hejazipour, Mitra"]
[Result "0-1"]
[ECO "A87"]
[WhiteElo "2199"]
[BlackElo "2327"]
[Annotator "RC"]
[PlyCount "118"]
[EventDate "2024.09.05"]
[EventType "team-tourn"]
[EventCountry "HUN"]
[SourceTitle "playchess.com"]
[Source "ChessBase"]
[SourceQuality "1"]
[WhiteTeam "Hungary B"]
[BlackTeam "France"]
[BlackTeamCountry "FRA"]
[TimeControl "40/5400+30:1800+30"]

1. Nf3 f5 2. d4 Nf6 3. c4 g6 4. g3 Bg7 5. Bg2 O-O 6. O-O d6 7. b3 c6 8. Bb2 Na6 9. Nbd2 h6 10. a3 Qe8 11. Re1 g5 12. Qc2 Nc7 13. e4 fxe4 14. Nxe4 Qg6 15. Nxf6+ Qxf6 16. Re3 Rf7 17. Rae1 Bg4 18. Bc3 e6 19. h3 Qf5 20. Qxf5 Bxf5 21. Nd2 d5 22. Nf3 a5 23. a4 Bc2 24. Bd2 Be4 25. Ne5 Bxe5 26. dxe5 Bxg2 27. Kxg2 b6 28. Rd3 c5 29. f4 gxf4 30. gxf4 Rg7+ 31. Rg3 Rxg3+ 32. Kxg3 dxc4 33. bxc4 Rd8 34. Be3 Rd3 35. Kf3 Na6 36. f5 exf5 37. Kf4 Kf7 38. Kxf5 Nc7 39. Bxh6 Ne6 40. Rf1 Rd4 41. Rb1 Rh4 42. Bc1 Rxc4 43. Be3 Ng7+ 44. Kg5 Re4 45. Rf1+ Ke7 46. Kg6 Rxe3 47. Kxg7 Rg3+ 48. Kh6 Rxh3+ 49. Kg5 Ke6 50. Rf6+ Kxe5 51. Rxb6 Rg3+ 52. Kh4 Ra3 53. Rb5 Rxa4+ 54. Kg3 Kd4 55. Kf3 Ra1 56. Ke2 a4 57. Kd2 a3 58. Kc2 a2 59. Ra5 Rh1 0-1

[Event "45th FIDE Womens Olympiad 2024"]
[Site "Budapest"]
[Date "2024.09.16"]
[Round "6.49"]
[White "Roebers, Eline"]
[Black "Khamdamova, Afruza"]
[Result "1/2-1/2"]
[ECO "C29"]
[WhiteElo "2340"]
[BlackElo "2313"]
[Annotator "TA"]
[PlyCount "97"]
[EventDate "2024.09.05"]
[EventType "team-tourn"]
[EventCountry "HUN"]
[SourceTitle "playchess.com"]
[Source "ChessBase"]
[SourceQuality "1"]
[WhiteTeam "Netherlands"]
[BlackTeam "Uzbekistan"]
[WhiteTeamCountry "NED"]
[BlackTeamCountry "UZB"]
[TimeControl "40/5400+30:1800+30"]

{[%evp 11,97,0,0,0,0,-1,0,-24,-5,-42,-8,-13,0,0,0,-2,13,32,62,-14,0,0,0,0,48,47,46,43,51,-28,-16,-27,-12,-19,-19,-28,-32,-38,-29,-29,-19,-21,-22,-77,-23,-27,-27,-27,-12,-12,0,-68,-59,-50,-52,-63,-62,-120,-95,-120,-81,-81,-33,-88,-10,-33,0,-10,-1,-7,0,0,0,0,0,0,0,0,0,0,0,0,0,0,0,0,0,0]} 1. e4 e5 2. Nc3 Nf6 3. f4 d5 4. fxe5 Nxe4 5. Qf3 Nxc3 6. dxc3 {C29: Vienna Game: 2...Nf6 3 f4.} Be6 7. Bf4 c6 {Recently 7...Qd7 got a lot of attention.} 8. O-O-O Nd7 9. Qg3 h6 10. h4 Qa5 11. Kb1 O-O-O 12. Nf3 c5 13. Be2 g6 $146 ({Predecessor:} 13... Nb6 14. Bd2 Qa4 15. Bc1 Be7 16. h5 Rhg8 17. Bd3 Qg4 18. Qxg4 Bxg4 19. Rde1 Rde8 {1-0 Belenkaya,D (2322)-Levitan,R (2150) ISR-chT (Women) 2023 (4.1)}) 14. Nd2 Qc7 15. Rhe1 ({Better is} 15. c4 $14 Nb6 16. Bg4) 15... Bg7 16. Bg4 Rhe8 17. Nb3 Qc6 (17... Bxg4 $11 18. Qxg4 Bxe5 19. Bxh6 c4) 18. Bf3 $1 $14 Nb6 19. Qf2 $1 Bf8 20. Qe3 ({White should try} 20. Be3 $1 $14) 20... Nc4 $11 21. Qc1 h5 22. Nd2 Nxd2+ 23. Rxd2 Qb6 24. Be2 Be7 25. g3 d4 26. c4 Rd7 27. Bd3 {[#]} (27. b3 $11) 27... Qa6 (27... Qa5 $1 $17 {[%cal Ob7b5]} 28. Re4 b5) 28. b3 $11 Bd8 29. Rf2 Bc7 30. Bd2 Kb8 31. c3 (31. a4 $11) 31... Ba5 32. cxd4 Rxd4 33. Bc2 $1 Red8 34. Bxa5 (34. Be3 $15) 34... Qxa5 $17 35. Re4 R4d7 36. Qe1 Qc7 (36... Qa3 $17 {White must now prevent ...Bf5.} 37. Qc1 Qa6) 37. Re3 {[#]} (37. Kb2 $15) 37... Bf5 (37... a6 $1 $17 38. Kb2 (38. Qf1 Rd4) 38... Bg4) 38. Kb2 (38. Qc3 $5) 38... Bxc2 39. Rxc2 Rd1 40. Qf2 Qe7 41. Qf4 R8d4 42. Re4 Rxe4 43. Qxe4 Rd4 44. Qe3 a6 45. Rf2 f5 46. Rf4 Rd8 47. Rf2 Rd4 48. Rf4 Rd8 49. Rf2 1/2-1/2

[Event "45th FIDE Womens Olympiad 2024"]
[Site "Budapest"]
[Date "2024.09.16"]
[Round "6.50"]
[White "Yakubbaeva, Nilufar"]
[Black "Peng, Zhaoqin"]
[Result "1/2-1/2"]
[ECO "E14"]
[WhiteElo "2248"]
[BlackElo "2349"]
[Annotator "TA"]
[PlyCount "70"]
[EventDate "2024.09.05"]
[EventType "team-tourn"]
[EventCountry "HUN"]
[SourceTitle "playchess.com"]
[Source "ChessBase"]
[SourceQuality "1"]
[WhiteTeam "Uzbekistan"]
[BlackTeam "Netherlands"]
[WhiteTeamCountry "UZB"]
[BlackTeamCountry "NED"]
[TimeControl "40/5400+30:1800+30"]

{[%evp 18,70,16,10,35,36,43,12,13,0,40,24,36,29,27,13,22,11,22,16,33,18,24,9,11,0,0,-3,23,-10,0,-17,-17,-17,0,0,0,0,13,8,62,8,23,23,60,41,45,45,59,0,0,0,0,2,6]} 1. d4 d5 2. c4 e6 3. Nc3 Nf6 4. Nf3 Nbd7 5. e3 Be7 6. Be2 O-O 7. O-O b6 8. b3 Bb7 9. Bb2 c5 10. Rc1 a6 11. cxd5 exd5 12. Bd3 Re8 13. dxc5 Nxc5 14. Bb1 Nfe4 15. Nd4 Bf6 16. b4 Nxc3 17. Bxc3 Ne4 18. Ba1 Rc8 19. Qd3 {f3 would now be deadly.} g6 20. Rxc8 Qxc8 21. a3 Qc4 22. Rd1 Kg7 23. Bb2 (23. Qf1 {simplifies} Qxf1+ 24. Kxf1 Nd6 25. a4) 23... Rc8 24. f3 {[#] Hoping for Qxc4.} Nc3 {aiming for ...Qxd3.} 25. Re1 Na4 (25... Bxd4 {simplifies} 26. Qxd4+ Qxd4 27. exd4 Nxb1 28. Rxb1 Kf6) 26. Ba1 Qxd3 27. Bxd3 h5 28. Kf2 Kg8 (28... b5 $11) 29. Ke2 (29. Nf5 $1 $14 Rc6 30. Bxf6 (30. b5 axb5 31. Bxf6 Rxf6 $16) 30... Rxf6 31. Nd4) 29... Bg7 30. Kd2 Kf8 31. Bc2 b5 32. Bxa4 bxa4 33. Rc1 ({White should try} 33. Ne2 $14) 33... Rxc1 $11 {The position is equal.} 34. Kxc1 Bxd4 35. Bxd4 Ke7 {Weighted Error Value: White=0.16 (very precise) /Black=0.12 (very precise) .  Mistake:       	White=2     	Black=1      Inaccurate:     	White=2     	Black=3      OK:         	White=5     	Black=12} 1/2-1/2

[Event "45th FIDE Womens Olympiad 2024"]
[Site "Budapest"]
[Date "2024.09.16"]
[Round "6.51"]
[White "Van Foreest, Machteld"]
[Black "Omonova, Umida"]
[Result "1-0"]
[ECO "C54"]
[WhiteElo "2224"]
[BlackElo "2032"]
[Annotator "TA"]
[PlyCount "87"]
[EventDate "2024.09.05"]
[EventType "team-tourn"]
[EventCountry "HUN"]
[SourceTitle "playchess.com"]
[Source "ChessBase"]
[SourceQuality "1"]
[WhiteTeam "Netherlands"]
[BlackTeam "Uzbekistan"]
[WhiteTeamCountry "NED"]
[BlackTeamCountry "UZB"]
[TimeControl "40/5400+30:1800+30"]

{[%evp 14,87,25,19,16,0,21,0,66,81,87,94,160,160,181,70,72,83,68,71,65,67,80,59,100,74,93,54,59,44,39,48,41,40,47,35,48,37,89,89,84,62,127,132,124,86,110,109,106,104,102,104,219,212,258,228,249,244,273,239,424,394,530,480,526,518,497,477,485,461,505,513,800,894,879,611]} 1. e4 e5 2. Nf3 Nc6 3. Bc4 Bc5 4. c3 Nf6 5. d3 a6 6. Bb3 Ba7 7. h3 d6 8. Nbd2 h6 9. Nf1 d5 10. Qe2 Qd6 (10... O-O $11) 11. exd5 $14 Nxd5 12. d4 e4 13. Qxe4+ $16 Be6 {[%cal Bc8e6,Be6d5,Bd5e4][%mdl 32]} 14. Bxd5 ({White should try} 14. Ne3 $18 Nf6 15. Qc2) 14... Qxd5 $14 15. Qxd5 Bxd5 16. Bf4 O-O-O 17. Ne3 Rhe8 18. O-O Be4 19. Rad1 Ne7 20. Ne5 f6 21. Nd3 Nd5 22. Nxd5 Bxd5 23. b3 g5 24. Be3 c6 25. Rfe1 f5 (25... a5 $14) 26. f3 $16 Bb8 27. Bf2 Rg8 (27... Bf7 $14) 28. c4 Bf7 29. Re7 $36 {[%mdl 2048] White is on the roll.} Rd7 30. Rxd7 Kxd7 31. Ne5+ Bxe5 32. dxe5+ {[%mdl 4096] Endgame. KRB-KRB} Kc8 {[#]} (32... Kc7 $16 33. Bc5 Be6) 33. Bb6 $1 $18 Be6 34. Rd6 Re8 {[#]} 35. h4 $1 {[%cal Bh3h4,Bh4h5][%mdl 544]} f4 (35... a5 36. Bxa5) 36. h5 g4 $2 {[#]} (36... Bf5 37. Rxh6 Rxe5) 37. g3 $1 {[%mdl 512]} fxg3 (37... a5 38. gxf4) 38. f4 {White is clearly winning.} Kb8 39. Kg2 Kc8 40. Kxg3 Kb8 41. Kf2 Kc8 42. Ke3 {And now Ke4 would win.} Kb8 (42... g3 $142 43. Kf3 c5 44. Kxg3 (44. Bxc5 Bf5 $18) 44... Bf5 45. Rxh6 (45. Bxc5 Re6 $18) 45... Rg8+ 46. Kf2 Rg4) 43. Ke4 g3 44. Kf3 {Weighted Error Value: White=0.12 (very precise) /Black=0.35.  Mistake:       	White=1     	Black=7      Inaccurate:     	White=2     	Black=2      OK:         	White=16    	Black=12     Best:        	White=4     	---        Strong:       	White=1     	---} 1-0

[Event "45th FIDE Womens Olympiad 2024"]
[Site "Budapest"]
[Date "2024.09.16"]
[Round "6.52"]
[White "Nadirjanova, Nodira"]
[Black "Kazarian, Anna-Maja"]
[Result "1-0"]
[ECO "D45"]
[WhiteElo "2059"]
[BlackElo "2180"]
[Annotator "TA"]
[PlyCount "83"]
[EventDate "2024.09.05"]
[EventType "team-tourn"]
[EventCountry "HUN"]
[SourceTitle "playchess.com"]
[Source "ChessBase"]
[SourceQuality "1"]
[WhiteTeam "Uzbekistan"]
[BlackTeam "Netherlands"]
[WhiteTeamCountry "UZB"]
[BlackTeamCountry "NED"]
[TimeControl "40/5400+30:1800+30"]

{[%evp 12,83,0,6,22,4,11,0,6,0,3,0,168,175,225,209,222,226,223,213,289,174,245,246,280,211,200,207,187,140,137,133,200,191,189,189,176,158,202,151,150,116,100,118,120,128,125,78,106,84,193,202,193,203,219,141,178,124,157,155,316,261,334,341,512,493,504,495,533,526,1208,1200,1095,819]} 1. d4 d5 2. c4 c6 3. e3 Nf6 4. Nc3 e6 5. Nf3 Nbd7 6. Be2 Bd6 7. O-O Ne4 8. Bd3 f5 9. Ne2 Qf6 {The position is equal.} 10. Ne1 O-O 11. f3 Qh4 12. g3 $18 (12. fxe4 $2 {leads to mate.} Bxh2+ (12... Qxh2+ $2 13. Kf2 $19) 13. Kh1 Bg3+ 14. Kg1 Qh2#) 12... Nxg3 (12... Qh3 $142 13. fxe4 dxe4) 13. hxg3 Bxg3 14. Nxg3 Qxg3+ 15. Ng2 e5 {[%cal Be6e5,Be5e4][%mdl 32]} 16. Qe1 Qg6 (16... Qxe1 $142 17. Nxe1 (17. Rxe1 e4 $18) 17... e4) 17. cxd5 cxd5 18. Bd2 e4 19. Be2 Nf6 20. f4 (20. Bb4 $18 Re8 21. Bd6) 20... Bd7 $16 21. Rc1 Ng4 (21... Rfc8 $16 {is a better defense.} 22. Qh4 Qf7) 22. Qh4 $18 Qb6 23. Bxg4 fxg4 24. Bc3 Rad8 25. Kf2 Rf6 26. Rh1 h6 27. Kg1 Rc8 28. Qe1 Kh7 {[#]} 29. Rh2 (29. Rh5 $142 $1 {[%cal Rh5d5]} Bf5 30. Qg3) 29... Qa6 30. a3 Bb5 {[#]} (30... Rcc6 $16 {was necessary.} 31. Rh5 Bf5) 31. Rh5 $1 Qe6 32. Re5 Qd7 33. Kh2 b6 34. Rc2 ({White should play} 34. Nh4 $18) 34... Bd3 35. Rd2 Qb5 $2 {This costs Black the game.} (35... Rcf8 $16 36. Qg3 R8f7) 36. Qd1 g3+ 37. Kxg3 Rg6+ (37... Rcf8 $142 38. Nh4 Qd7) 38. Kh2 {White is clearly winning.} Qd7 39. Qh5 Bc4 40. Nh4 {[%cal Bg2h4,Bh4f5,Bf5e7][%mdl 32]} Rg4 41. Nf5 Rg6 42. Ne7 {Weighted Error Value: White=0.17 (very precise) /Black=0.43.  Loses game:     	---       	Black=2      Mistake:       	White=3     	Black=5      Inaccurate:     	White=2     	Black=3      OK:         	White=15    	Black=9      Best:        	White=2     	---        Strong:       	White=1     	---} 1-0